bitfinex/quotes_SOLUSD_20220129
["timestamp","ask_amount","ask_price","bid_price","bid_amount"]
[1643498385487,62.54,95.529,95.322,1.68]
[1643498385488,104.2,95.526,95.37,12.61]
[1643498385724,3.0,95.509,95.37,12.61]
[1643498385883,3.0,95.488,95.306,72.5643]
[1643498386082,3.0,95.473,95.35,12.61]
[1643498386282,39.02985068,95.472,95.35,12.61]
[1643498386584,6.0,95.462,95.36,6.0]
[1643498386784,6.0,95.462,95.361,0.25]
[1643498386982,0.25,95.461,95.37,12.61]
[1643498387386,0.25,95.461,95.38,6.0]
[1643498387583,0.25,95.461,95.38,18.61]
[1643498387783,0.25,95.461,95.381,0.25]
[1643498388183,0.25,95.471,95.381,0.25]
[1643498388385,6.0,95.462,95.381,0.25]
[1643498388585,6.0,95.462,95.38,18.61]
[1643498388586,0.25,95.461,95.38,12.61]
[1643498388786,0.25,95.461,95.35,12.61]
[1643498388987,21.728,95.46,95.36,6.0]
[1643498389189,15.728,95.46,95.37,12.61]
[1643498389387,0.25,95.459,95.371,0.25]
[1643498389589,3.0,95.46,95.38,6.0]
[1643498389787,38.77985068,95.472,95.39,12.61]
[1643498389987,38.77985068,95.472,95.4,6.0]
[1643498390396,3.0,95.496,95.401,0.25]
[1643498390591,24.154,95.508,95.401,0.25]
[1643498390797,0.25,95.507,95.401,0.25]
[1643498391030,0.25,95.507,95.41,6.0]
[1643498391391,42.39220596,95.497,95.411,0.25]
[1643498391595,6.0,95.487,95.39,12.61]
[1643498391793,0.25,95.486,95.36,12.61]
[1643498392391,6.25,95.486,95.36,12.61]
[1643498392590,6.25,95.486,95.37,6.0]
[1643498392890,15.726,95.48,95.371,0.25]
[1643498393139,6.0,95.47,95.371,2.42893082]
[1643498393294,0.25,95.469,95.372,21.30238388]
[1643498393492,0.25,95.469,95.382,6.0]
[1643498393493,6.25,95.469,95.382,6.0]
[1643498393692,6.25,95.469,95.39,12.61]
[1643498393893,6.25,95.469,95.391,0.25]
[1643498394092,6.25,95.469,95.4,5.5]
[1643498394294,6.25,95.469,95.401,0.25]
[1643498394695,6.25,95.469,95.4,5.5]
[1643498394993,104.2,95.468,95.38,12.61]
[1643498395239,104.2,95.468,95.37,12.61]
[1643498395495,36.87010865,95.457,95.37,12.61]
[1643498395693,36.87010865,95.457,95.38,6.0]
[1643498395893,6.0,95.447,95.38,6.0]
[1643498396094,6.0,95.447,95.37,6.0]
[1643498396339,0.25,95.446,95.37,6.0]
[1643498396497,41.61763877,95.439,95.35,6.0]
[1643498396694,41.61763877,95.439,95.35,18.61]
[1643498396897,0.25,95.438,95.35,12.61]
[1643498397094,41.61763877,95.439,95.35,12.61]
[1643498397095,41.61763877,95.439,95.361,104.2]
[1643498397296,41.61763877,95.439,95.37,12.61]
[1643498397497,41.61763877,95.439,95.38,6.0]
[1643498397697,41.61763877,95.439,95.38,18.61]
[1643498397896,41.61763877,95.439,95.381,0.25]
[1643498398097,0.25,95.438,95.38,12.61]
[1643498398297,0.25,95.438,95.381,0.25]
[1643498398602,0.25,95.438,95.38,12.61]
[1643498398796,41.61763877,95.439,95.381,0.25]
[1643498398998,0.25,95.438,95.38,12.61]
[1643498400298,0.25,95.438,95.381,0.25]
[1643498402711,0.25,95.438,95.362,6.0]
[1643498402904,0.25,95.438,95.37,6.0]
[1643498403302,0.25,95.438,95.371,0.25]
[1643498405403,41.61763877,95.439,95.371,0.25]
[1643498406803,0.25,95.438,95.371,0.25]
[1643498407007,41.61763877,95.439,95.371,0.25]
[1643498408403,0.25,95.438,95.371,0.25]
[1643498410004,0.25,95.438,95.36,6.0]
[1643498410405,0.25,95.438,95.361,0.25]
[1643498415908,41.61763877,95.439,95.37,12.61]
[1643498416110,41.61763877,95.439,95.38,6.0]
[1643498416313,41.61763877,95.439,95.381,0.25]
[1643498416508,41.61763877,95.439,95.381,6.25]
[1643498416711,41.61763877,95.439,95.381,0.25]
[1643498417310,0.25,95.438,95.381,0.25]
[1643498417514,6.0,95.429,95.372,0.25]
[1643498417915,0.25,95.438,95.37,6.0]
[1643498418112,0.25,95.438,95.361,0.25]
[1643498418113,0.25,95.438,95.361,6.25]
[1643498418312,0.25,95.438,95.362,0.25]
[1643498418512,0.25,95.438,95.368,6.0]
[1643498418912,0.25,95.438,95.37,6.0]
[1643498419312,0.25,95.438,95.371,0.25]
[1643498421820,0.25,95.438,95.37,6.0]
[1643498422020,6.0,95.429,95.36,6.0]
[1643498422420,0.25,95.428,95.36,6.0]
[1643498423943,0.25,95.428,95.349,6.0]
[1643498424184,40.38526032,95.422,95.35,6.0]
[1643498424343,104.45,95.421,95.34,12.61]
[1643498424544,0.25,95.421,95.325,1.45665709]
[1643498424742,0.25,95.421,95.333,1.45665709]
[1643498425146,0.25,95.421,95.334,0.25]
[1643498425543,0.25,95.421,95.343,6.0]
[1643498425743,0.25,95.421,95.334,1.70665709]
[1643498425944,6.0,95.412,95.334,1.70665709]
[1643498426147,6.0,95.412,95.326,1.45665709]
[1643498426346,6.0,95.412,95.33,6.0]
[1643498426347,0.25,95.411,95.33,6.0]
[1643498426545,6.0,95.403,95.322,6.0]
[1643498426746,0.25,95.402,95.322,6.0]
[1643498427368,0.25,95.402,95.314,6.0]
[1643498427547,0.25,95.402,95.32,6.0]
[1643498427750,0.25,95.402,95.314,6.0]
[1643498427947,15.738,95.4,95.317,6.0]
[1643498428148,15.738,95.4,95.315,0.25]
[1643498428349,0.25,95.399,95.315,0.25]
[1643498428549,0.25,95.399,95.316,6.0]
[1643498428751,0.25,95.399,95.317,0.25]
[1643498429151,0.25,95.399,95.319,6.0]
[1643498429352,0.25,95.403,95.32,18.86]
[1643498429650,0.25,95.403,95.33,6.0]
[1643498429853,0.25,95.403,95.331,0.25]
[1643498430055,0.25,95.403,95.331,6.25]
[1643498430852,0.25,95.403,95.331,8.42886276]
[1643498431056,0.25,95.403,95.331,2.42886276]
[1643498431353,1.44242477,95.429,95.341,6.0]
[1643498431554,3.0,95.43,95.341,6.0]
[1643498431752,15.728,95.47,95.342,0.25]
[1643498431753,0.25,95.42,95.342,0.25]
[1643498431952,0.25,95.42,95.35,6.0]
[1643498432453,41.48437539,95.437,95.351,6.25]
[1643498432652,41.73437539,95.437,95.351,6.25]
[1643498434556,41.73437539,95.437,95.351,8.42886276]
[1643498434758,41.73437539,95.437,95.351,2.42886276]
[1643498434959,41.73437539,95.437,95.351,106.62886276]
[1643498437965,41.73437539,95.437,95.351,0.25]
[1643498438360,6.0,95.427,95.351,0.25]
[1643498438561,6.0,95.427,95.356,6.0]
[1643498438761,0.25,95.426,95.357,0.25]
[1643498439862,0.25,95.436,95.356,110.2]
[1643498440465,0.25,95.436,95.356,6.0]
[1643498440863,6.0,95.427,95.35,15.11]
[1643498441319,6.0,95.427,95.351,0.25]
[1643498441320,0.25,95.426,95.351,0.25]
[1643498442064,0.25,95.426,95.35,15.11]
[1643498442564,0.25,95.426,95.338,11.72]
[1643498442767,0.25,95.426,95.348,6.0]
[1643498442969,104.2,95.424,95.348,6.0]
[1643498443168,104.2,95.419,95.348,6.0]
[1643498443469,104.2,95.413,95.348,6.0]
[1643498443672,46.60704901,95.418,95.348,6.0]
[1643498443870,0.25,95.412,95.348,6.0]
[1643498444465,6.0,95.408,95.348,6.0]
[1643498444869,0.25,95.407,95.348,6.0]
[1643498448373,0.25,95.407,95.343,6.0]
[1643498448575,0.25,95.407,95.316,1.45665709]
[1643498448797,104.45,95.407,95.311,1.45665709]
[1643498448997,0.25,95.407,95.306,1.45665709]
[1643498449201,37.6611078,95.396,95.306,1.45665709]
[1643498449399,0.25,95.395,95.306,1.45665709]
[1643498449797,6.0,95.386,95.306,1.45665709]
[1643498449998,6.0,95.386,95.305,1.45665709]
[1643498450197,0.25,95.385,95.306,1.45665709]
[1643498451400,0.25,95.395,95.306,1.45665709]
[1643498452899,104.45,95.395,95.306,1.45665709]
[1643498453119,0.25,95.395,95.306,1.45665709]
[1643498453703,6.0,95.386,95.302,1.45665709]
[1643498453900,6.0,95.386,95.3,1.45665709]
[1643498454098,6.0,95.386,95.295,0.1]
[1643498454099,0.25,95.385,95.307,1.45665709]
[1643498454300,0.25,95.385,95.297,1.45665709]
[1643498454500,0.25,95.385,95.295,0.1]
[1643498454700,104.45,95.385,95.289,1.45665709]
[1643498454901,15.743,95.38,95.294,1.45665709]
[1643498455101,42.51042883,95.369,95.295,0.1]
[1643498455323,0.25,95.368,95.295,1.55665709]
[1643498455501,0.25,95.368,95.293,1.45665709]
[1643498455700,0.25,95.368,95.277,15.9324]
[1643498455701,0.25,95.368,95.294,0.1]
[1643498455904,0.25,95.368,95.295,0.1]
[1643498456100,0.25,95.368,95.292,0.1]
[1643498456305,15.743,95.38,95.293,0.1]
[1643498456510,15.743,95.38,95.277,15.9324]
[1643498456511,1.44242477,95.397,95.343,6.0]
[1643498456909,5.75838662,95.457,95.351,0.30729671]
[1643498457111,15.11,95.52,95.351,0.30729671]
[1643498457112,3.0,95.49,95.361,104.2]
[1643498457310,42.26293219,95.498,95.378,0.30395711]
[1643498457510,42.26293219,95.498,95.408,0.31519581]
[1643498457711,42.26293219,95.498,95.42,15.11]
[1643498457916,42.26293219,95.498,95.421,104.2]
[1643498458116,42.26293219,95.498,95.431,6.0]
[1643498458318,42.26293219,95.498,95.432,0.25]
[1643498458538,42.26293219,95.498,95.44,6.0]
[1643498458918,42.26293219,95.498,95.441,0.25]
[1643498459117,42.26293219,95.498,95.441,6.25]
[1643498459616,42.26293219,95.498,95.441,6.0]
[1643498459816,42.26293219,95.498,95.431,22.34814161]
[1643498460420,42.26293219,95.498,95.441,6.0]
[1643498460817,0.25,95.497,95.442,0.25]
[1643498461020,0.25,95.497,95.441,6.0]
[1643498461620,0.25,95.497,95.408,15.4825]
[1643498461621,0.25,95.497,95.411,21.52317605]
[1643498461823,0.25,95.497,95.408,15.4825]
[1643498462019,3.0,95.494,95.408,15.4825]
[1643498462221,6.0,95.488,95.408,15.4825]
[1643498462419,104.2,95.487,95.408,15.4825]
[1643498462621,104.2,95.487,95.37,12.58]
[1643498462622,104.45,95.487,95.37,12.58]
[1643498462922,104.2,95.479,95.38,6.0]
[1643498463123,46.17478715,95.478,95.38,6.0]
[1643498463420,104.2,95.477,95.381,0.25]
[1643498463828,0.25,95.476,95.381,0.25]
[1643498467655,0.25,95.476,95.39,6.0]
[1643498467855,0.25,95.476,95.391,0.25]
[1643498469056,0.25,95.476,95.378,6.0]
[1643498469282,0.25,95.476,95.379,0.25]
[1643498469456,104.2,95.477,95.379,0.25]
[1643498470056,6.0,95.467,95.379,0.25]
[1643498470457,104.2,95.466,95.379,0.25]
[1643498470858,0.25,95.465,95.379,0.25]
[1643498471258,0.25,95.465,95.38,6.0]
[1643498471659,0.25,95.465,95.388,6.0]
[1643498471861,0.25,95.465,95.389,0.25]
[1643498472061,0.25,95.465,95.381,0.25]
[1643498473360,0.25,95.466,95.381,0.25]
[1643498473763,0.25,95.467,95.381,0.25]
[1643498474662,104.45,95.467,95.381,0.25]
[1643498475663,0.25,95.467,95.381,0.25]
[1643498476163,0.25,95.467,95.381,6.25]
[1643498476364,0.25,95.467,95.382,0.25]
[1643498478570,104.45,95.467,95.382,0.25]
[1643498479273,0.25,95.467,95.382,0.25]
[1643498486331,0.25,95.467,95.381,6.0]
[1643498487732,0.25,95.467,95.382,0.25]
[1643498488028,34.18881764,95.462,95.382,0.25]
[1643498488220,6.0,95.458,95.382,0.25]
[1643498488422,0.25,95.461,95.382,0.25]
[1643498488621,0.25,95.457,95.382,0.25]
[1643498489221,34.18881764,95.462,95.382,0.25]
[1643498489521,0.25,95.461,95.381,6.0]
[1643498490725,0.25,95.461,95.382,0.25]
[1643498491620,0.25,95.461,95.383,2.17855393]
[1643498491822,0.25,95.461,95.384,0.25]
[1643498492022,0.25,95.461,95.393,6.0]
[1643498492421,0.25,95.461,95.394,0.25]
[1643498493025,0.25,95.461,95.393,6.0]
[1643498493224,6.0,95.452,95.393,6.0]
[1643498493423,6.0,95.452,95.381,6.0]
[1643498493623,6.0,95.452,95.38,6.0]
[1643498493624,0.25,95.451,95.38,6.0]
[1643498493823,0.25,95.451,95.381,0.25]
[1643498495826,0.25,95.451,95.381,2.42855393]
[1643498496027,0.25,95.451,95.391,6.0]
[1643498496827,0.25,95.451,95.381,0.25]
[1643498497029,0.25,95.451,95.38,6.0]
[1643498497030,6.0,95.45,95.38,6.0]
[1643498497231,6.0,95.45,95.381,0.25]
[1643498497428,0.25,95.449,95.381,0.25]
[1643498497830,0.25,95.459,95.382,2.17855393]
[1643498498030,6.0,95.452,95.392,6.0]
[1643498498430,0.25,95.451,95.393,0.25]
[1643498498629,0.25,95.451,95.392,6.0]
[1643498499731,0.25,95.451,95.393,0.25]
[1643498501329,0.25,95.461,95.393,0.25]
[1643498510175,0.25,95.461,95.392,21.7062]
[1643498510766,6.0,95.452,95.392,21.7062]
[1643498511174,0.25,95.451,95.392,21.7062]
[1643498513986,34.18881764,95.462,95.392,21.7062]
[1643498514187,34.18881764,95.462,95.393,0.25]
[1643498515374,0.25,95.461,95.393,0.25]
[1643498516073,0.25,95.461,95.392,21.7062]
[1643498517375,0.25,95.461,95.393,0.25]
[1643498520179,0.25,95.461,95.392,21.7062]
[1643498520877,104.2,95.451,95.392,15.7062]
[1643498521084,104.2,95.44,95.361,15.5853]
[1643498521278,104.2,95.438,95.295,0.1]
[1643498521479,104.2,95.429,95.29,12.58]
[1643498521681,104.2,95.427,95.342,18.43318435]
[1643498521978,110.2,95.417,95.342,18.43318435]
[1643498522177,6.0,95.417,95.342,18.43318435]
[1643498522379,6.0,95.408,95.342,18.43318435]
[1643498522780,0.25,95.407,95.343,0.25]
[1643498524579,6.0,95.408,95.343,0.25]
[1643498524781,0.25,95.407,95.344,2.17855393]
[1643498525178,0.25,95.407,95.345,0.25]
[1643498525882,0.25,95.427,95.345,0.25]
[1643498526081,6.0,95.418,95.354,6.0]
[1643498526282,0.25,95.417,95.355,0.25]
[1643498527699,44.89912237,95.428,95.355,0.25]
[1643498527890,0.25,95.417,95.355,0.25]
[1643498528888,0.25,95.427,95.355,0.25]
[1643498529089,0.25,95.427,95.345,0.25]
[1643498529686,3.0,95.454,95.355,104.2]
[1643498529899,104.2,95.473,95.356,0.25]
[1643498530190,6.0,95.45,95.356,6.25]
[1643498530391,6.0,95.45,95.357,2.17855393]
[1643498530592,2.88792085,95.484,95.366,6.0]
[1643498530790,36.70985438,95.483,95.37,15.12]
[1643498530990,36.70985438,95.483,95.38,6.0]
[1643498531204,36.70985438,95.483,95.381,104.2]
[1643498531397,36.70985438,95.483,95.381,110.45]
[1643498531739,2.88792085,95.505,95.39,6.0]
[1643498531894,104.2,95.511,95.391,0.25]
[1643498532093,6.0,95.501,95.393,6.0]
[1643498532404,2.88792085,95.489,95.36,15.12]
[1643498532589,6.0,95.479,95.37,6.0]
[1643498532956,44.14681955,95.478,95.37,6.0]
[1643498533091,6.0,95.468,95.37,6.0]
[1643498533305,150.915,95.467,95.371,0.25]
[1643498533506,33.18604848,95.462,95.371,0.25]
[1643498533691,104.2,95.456,95.371,0.25]
[1643498533895,0.25,95.455,95.371,0.25]
[1643498536095,104.2,95.445,95.371,0.25]
[1643498536304,0.25,95.444,95.371,0.25]
[1643498539137,0.25,95.444,95.362,6.0]
[1643498539311,0.25,95.444,95.363,0.25]
[1643498539510,6.0,95.435,95.363,0.25]
[1643498539944,0.25,95.434,95.363,0.25]
[1643498541100,0.25,95.444,95.363,0.25]
[1643498542500,104.2,95.434,95.362,6.0]
[1643498542701,33.28414782,95.433,95.362,6.0]
[1643498542900,33.53414782,95.433,95.362,6.0]
[1643498543104,33.53414782,95.433,95.363,0.25]
[1643498543505,33.53414782,95.433,95.362,6.0]
[1643498544904,33.53414782,95.433,95.363,0.25]
[1643498546016,33.28414782,95.433,95.363,0.25]
[1643498547033,62.54,95.429,95.315,0.00988435]
[1643498547237,104.2,95.432,95.294,11.9168]
[1643498547238,30.0,95.419,95.294,11.9168]
[1643498547440,3.0,95.384,95.202,4.37982653]
[1643498547644,8.63259022,95.418,95.202,4.37982653]
[1643498547645,15.12,95.37,95.202,4.37982653]
[1643498547843,3.0,95.32,95.258,18.26999075]
[1643498548033,6.0,95.31,95.258,18.26999075]
[1643498548234,21.20325195,95.319,95.259,1.74580303]
[1643498548538,0.25,95.309,95.259,1.74580303]
[1643498548943,20.95325195,95.319,95.259,1.74580303]
[1643498549148,0.25,95.318,95.259,1.74580303]
[1643498549539,6.0,95.33,95.269,6.0]
[1643498549942,24.4111,95.356,95.27,0.25]
[1643498550136,44.03710904,95.388,95.27,106.61669311]
[1643498550337,3.0,95.403,95.27,106.61669311]
[1643498550551,48.4334,95.407,95.281,104.2]
[1643498550734,6.0,95.393,95.282,47.7195]
[1643498550956,6.0,95.397,95.283,104.2]
[1643498551141,6.0,95.397,95.294,104.2]
[1643498551340,42.22536896,95.396,95.295,0.25]
[1643498551549,6.0,95.386,95.295,0.25]
[1643498552138,42.22536896,95.396,95.297,6.0]
[1643498552337,42.22536896,95.396,95.298,0.25]
[1643498552538,42.22536896,95.396,95.306,6.0]
[1643498552744,42.22536896,95.396,95.299,2.16669311]
[1643498552944,42.22536896,95.396,95.308,6.0]
[1643498553184,42.22536896,95.396,95.309,6.0]
[1643498553337,42.22536896,95.396,95.31,0.25]
[1643498553557,3.0,95.414,95.31,6.25]
[1643498553756,24.8425,95.439,95.311,104.51687036]
[1643498553947,24.8425,95.439,95.313,104.2]
[1643498554170,24.8425,95.439,95.324,104.2]
[1643498554337,24.8425,95.439,95.325,49.301]
[1643498554539,45.12300641,95.438,95.335,110.2]
[1643498554741,45.12300641,95.438,95.335,6.0]
[1643498554955,45.12300641,95.438,95.34,6.0]
[1643498555151,45.12300641,95.438,95.347,6.0]
[1643498555346,45.12300641,95.438,95.348,0.25]
[1643498555552,104.2,95.437,95.351,6.0]
[1643498555741,104.2,95.426,95.323,2.16669311]
[1643498555943,104.2,95.426,95.282,15.666]
[1643498555944,104.2,95.424,95.291,104.2]
[1643498556141,104.2,95.424,95.29,15.12]
[1643498556142,119.31439336,95.414,95.301,6.0]
[1643498556360,0.25,95.413,95.301,6.0]
[1643498556541,0.25,95.413,95.304,104.2]
[1643498556758,0.25,95.413,95.306,104.2]
[1643498557140,6.0,95.404,95.316,6.0]
[1643498557342,0.25,95.403,95.316,6.0]
[1643498557547,0.25,95.403,95.307,0.25]
[1643498557548,0.25,95.403,95.317,0.25]
[1643498557746,0.25,95.403,95.307,0.25]
[1643498557951,0.25,95.403,95.315,6.0]
[1643498558346,15.12,95.39,95.316,0.25]
[1643498558564,15.12,95.39,95.318,6.0]
[1643498558744,15.12,95.39,95.319,0.25]
[1643498559346,0.25,95.389,95.319,0.25]
[1643498559551,9.11439336,95.379,95.319,0.25]
[1643498559774,15.12,95.37,95.319,0.25]
[1643498559959,15.12,95.37,95.306,0.25]
[1643498560151,15.12,95.37,95.315,6.0]
[1643498560359,15.12,95.37,95.316,0.25]
[1643498560551,15.12,95.37,95.302,6.0]
[1643498560803,15.12,95.37,95.303,0.25]
[1643498562850,0.25,95.369,95.303,0.25]
[1643498567855,0.25,95.369,95.303,104.45]
[1643498568052,0.25,95.369,95.313,6.0]
[1643498568255,0.25,95.369,95.314,0.25]
[1643498568504,15.12,95.37,95.314,0.25]
[1643498569066,5.81612689,95.37,95.314,0.25]
[1643498569255,188.95,95.41,95.314,0.25]
[1643498569474,188.95,95.41,95.308,104.2]
[1643498569475,15.12,95.4,95.309,22.9488]
[1643498569661,21.12,95.4,95.318,6.0]
[1643498569858,34.965802,95.399,95.319,6.25]
[1643498570057,6.0,95.389,95.319,6.25]
[1643498570254,15.12,95.38,95.319,6.25]
[1643498570771,15.12,95.38,95.32,6.0]
[1643498571156,15.12,95.38,95.329,6.0]
[1643498571358,15.12,95.38,95.33,0.25]
[1643498571596,15.12,95.38,95.321,0.25]
[1643498571858,0.25,95.379,95.287,104.2]
[1643498572061,15.12,95.38,95.321,0.25]
[1643498572268,0.25,95.379,95.321,0.25]
[1643498572456,15.12,95.38,95.321,0.25]
[1643498573260,15.12,95.38,95.319,6.0]
[1643498573261,15.12,95.38,95.32,0.25]
[1643498576381,6.67669264,95.38,95.32,104.45]
[1643498576555,6.67669264,95.38,95.33,6.0]
[1643498576758,6.67669264,95.38,95.331,0.25]
[1643498577372,6.67669264,95.38,95.331,6.25]
[1643498578000,6.67669264,95.38,95.331,6.0]
[1643498578163,6.67669264,95.38,95.332,0.25]
[1643498578391,36.51958179,95.379,95.332,0.25]
[1643498578766,0.25,95.378,95.319,6.0]
[1643498580592,0.25,95.378,95.309,15.401]
[1643498581703,6.67669264,95.38,95.319,6.0]
[1643498581871,1.43322405,95.386,95.319,6.0]
[1643498582063,15.12,95.4,95.32,6.0]
[1643498582265,15.12,95.4,95.321,24.3765]
[1643498582465,1.43322405,95.399,95.321,24.3765]
[1643498582663,1.43322405,95.397,95.331,6.0]
[1643498582868,6.0,95.387,95.309,15.401]
[1643498583082,6.0,95.378,95.309,15.401]
[1643498583278,0.25,95.377,95.309,15.401]
[1643498583467,6.0,95.37,95.309,15.401]
[1643498583663,21.12,95.37,95.309,15.401]
[1643498583889,0.25,95.369,95.309,15.401]
[1643498584268,0.25,95.369,95.31,0.25]
[1643498585868,6.0,95.367,95.31,0.25]
[1643498586069,6.0,95.36,95.31,0.25]
[1643498586280,34.51177562,95.359,95.309,15.401]
[1643498589810,0.25,95.359,95.309,15.401]
[1643498592399,15.12,95.36,95.31,0.25]
[1643498592602,1.43322405,95.384,95.319,6.0]
[1643498592803,16.55322405,95.39,95.32,0.25]
[1643498593023,15.12,95.39,95.32,6.25]
[1643498593298,43.86651254,95.385,95.32,6.25]
[1643498594413,0.25,95.384,95.32,6.0]
[1643498595418,104.2,95.374,95.321,2.16669311]
[1643498595600,6.0,95.364,95.309,15.401]
[1643498595823,15.12,95.35,95.309,15.401]
[1643498596702,0.25,95.349,95.309,15.401]
[1643498598107,0.25,95.349,95.319,6.0]
[1643498598509,0.25,95.349,95.309,15.401]
[1643498598906,6.0,95.34,95.309,15.401]
[1643498599219,9.3,95.34,95.309,15.401]
[1643498600215,0.25,95.339,95.309,15.401]
[1643498605528,9.3,95.34,95.309,15.401]
[1643498605712,33.44635823,95.349,95.309,15.401]
[1643498606713,15.12,95.34,95.267,1.45160263]
[1643498606918,15.12,95.34,95.17,188.95]
[1643498606919,6.0,95.339,95.253,1.45160263]
[1643498607116,28.9533489,95.329,95.232,15.7388]
[1643498607314,104.2,95.319,95.222,1.45160263]
[1643498607512,6.0,95.31,95.222,1.45160263]
[1643498607718,33.44635823,95.299,95.216,1.45160263]
[1643498607928,188.95,95.29,95.198,1.45160263]
[1643498608221,210.07,95.28,95.191,1.45160263]
[1643498608429,15.12,95.27,95.183,1.45160263]
[1643498608617,6.0,95.26,95.184,1.45160263]
[1643498608824,15.12,95.25,95.184,1.45160263]
[1643498609017,15.12,95.25,95.161,15.7029]
[1643498609018,6.0,95.24,95.181,1.45160263]
[1643498609218,28.9533489,95.239,95.181,1.45160263]
[1643498609426,29.2033489,95.239,95.182,0.25]
[1643498609618,29.2033489,95.239,95.182,1.45160263]
[1643498609817,29.2033489,95.239,95.18,1.45160263]
[1643498610024,6.0,95.229,95.172,6.0]
[1643498610443,6.0,95.22,95.161,15.7029]
[1643498610636,6.0,95.22,95.141,1.45160263]
[1643498610637,15.12,95.21,95.141,1.45160263]
[1643498610840,15.12,95.21,95.13,1.45160263]
[1643498610841,0.25,95.209,95.13,1.45160263]
[1643498611116,28.9533489,95.199,95.13,1.45160263]
[1643498611245,15.12,95.19,95.128,0.1]
[1643498611425,6.0,95.189,95.111,17.59680263]
[1643498611640,0.25,95.189,95.112,0.1]
[1643498611830,33.44635823,95.179,95.11,0.1]
[1643498612034,6.0,95.169,95.11,0.1]
[1643498612232,15.12,95.17,95.1,0.1]
[1643498612477,15.12,95.17,95.112,2.17483314]
[1643498612654,15.12,95.19,95.112,2.17483314]
[1643498612825,15.12,95.21,95.148,2.17483314]
[1643498613025,48.6442,95.256,95.148,2.17483314]
[1643498613026,15.12,95.23,95.158,6.0]
[1643498613279,15.761,95.26,95.158,6.0]
[1643498613280,15.12,95.26,95.158,6.0]
[1643498613439,37.49182688,95.278,95.159,2.42483314]
[1643498613632,37.49182688,95.278,95.169,6.0]
[1643498613834,37.49182688,95.278,95.17,0.25]
[1643498614023,37.49182688,95.278,95.17,23.3399203]
[1643498614235,104.2,95.277,95.17,25.51475344]
[1643498614441,104.2,95.277,95.171,2.17483314]
[1643498614628,6.0,95.267,95.181,6.0]
[1643498614832,6.0,95.267,95.182,0.25]
[1643498615023,6.0,95.267,95.182,2.42483314]
[1643498615238,6.0,95.267,95.183,2.17483314]